lending/lending_fUSD_20250323
["ID","MTS","AMOUNT","RATE_DAILY","PERIOD"]
[356581750,1742725840686,-2751.0,0.00011507,2]
[356581751,1742725840696,-150.0,0.00011525,2]
[356581752,1742725840705,-150.0,0.0001154,2]
[356581753,1742725840714,-150.0,0.0001156,2]
[356581754,1742725840724,-150.0,0.00011561,2]
[356581755,1742725840733,-150.0,0.00011569,2]
[356581756,1742725840743,-150.0,0.00011588,2]
[356581757,1742725840752,-150.0,0.00011606,2]
[356581758,1742725840761,-150.0,0.00011611,2]
[356581759,1742725840771,-150.0,0.00011614,2]
[356581760,1742725840780,-150.0,0.00011615,2]
[356581761,1742725840789,-150.0,0.0001164,2]
[356581762,1742725840798,-1062.5992108,0.0001164,2]
[356581763,1742725840808,-150.0,0.00011657,2]
[356581764,1742725840817,-150.0,0.00011682,2]
[356581765,1742725840828,-434.66918734,0.00011689,2]
[356581766,1742725840838,-150.0,0.00011717,2]
[356581767,1742725840847,-150.0,0.00011725,2]
[356581768,1742725840856,-150.0,0.00011726,2]
[356581769,1742725840866,-150.0,0.0001173,2]
[356581770,1742725840875,-150.0,0.00011733,2]
[356581771,1742725840884,-150.0,0.00011737,2]
[356581772,1742725840893,-150.0,0.00011741,2]
[356581773,1742725840904,-150.0,0.0001175,2]
[356581774,1742725840913,-150.0,0.00011761,2]
[356581775,1742725840922,-210.0,0.00011781,2]
[356581776,1742725840931,-150.0,0.00011789,2]
[356581777,1742725840940,-150.0,0.00011796,2]
[356581778,1742725840949,-314.93,0.00011874,2]
[356581779,1742725840958,-265.4199,0.00011897,2]
[356581780,1742725840967,-500.0,0.000119,2]
[356581781,1742725840976,-41071.3767,0.000119,2]
[356581782,1742725840985,-1000.0,0.000119,2]
[356581783,1742725840994,-286.6936027,0.000119,2]
[356581784,1742725841003,-165.642,0.000119,2]
[356581785,1742725841012,-1558.521,0.000119,2]
[356581786,1742725841021,-2500.0,0.000119,2]
[356581787,1742725841030,-229818.46689143,0.00012,2]
[356581788,1742725841042,-2598.95541347,0.00012,2]
[356581789,1742725841053,-505.543,0.00012,2]
[356581792,1742725841255,-234941.805,0.00012,2]
[356581811,1742725846348,-93503.82425117,0.00012,2]
[356581816,1742726101755,1718.71,9.333e-05,2]
[356581817,1742726137000,-150.0,0.00011597,2]
[356581819,1742726181640,-251.5281,0.00010996,2]
[356581820,1742726216529,-150.24,0.00010888,2]
[356581821,1742726230022,-199.6973,0.00010798,2]
[356581822,1742726266289,-166.66,0.00010798,2]
[356581823,1742726282530,-267.91342221,0.00010797,2]
[356581828,1742726318187,-32.08657779,0.00010797,2]
[356581829,1742726318212,-117.91342221,0.00010798,2]
[356581833,1742726407310,-172.1004613,0.00010692,2]
[356581837,1742726451506,-27.8995387,0.00010692,2]
[356581838,1742726451531,-122.1004613,0.00010797,2]
[356581840,1742726481511,-150.0,0.00010798,2]
[356581844,1742726523429,-300.0,0.00010797,2]
[356581848,1742726566310,-268.4271593,0.00010763,2]
[356581849,1742726567717,-281.1640407,0.00010673,2]
[356581851,1742726642934,-150.0,0.00010673,2]
[356581853,1742726655122,-369.67813049,0.00010624,2]
[356581871,1742726823095,-250.00582104,0.00010624,2]
[356581884,1742726853881,-1000.0,0.00010579,2]
[356581886,1742726881913,-300.0,0.00010624,2]
[356581887,1742726884505,-351.5187988,0.00010624,2]
[356582182,1742727031712,-2708.61724967,0.00010624,2]
[356582183,1742727031722,-150.0,0.00010648,2]
[356582184,1742727031732,-342.7559593,0.00010673,2]
[356582185,1742727031742,-14057.77079716,0.00010798,2]
[356582186,1742727031754,-2401.11058956,0.00010798,2]
[356582187,1742727031767,-411.11678791,0.00010798,2]
[356582188,1742727031779,-6395.73110316,0.00010798,2]
[356582189,1742727031789,-150.24,0.00010927,2]
[356582190,1742727031798,-150.0,0.00010959,2]
[356582191,1742727031807,-150.24,0.00010967,2]
[356582192,1742727031817,-332.2119,0.00010996,2]
[356582193,1742727031826,-8672.0,0.00011,2]
[356582194,1742727031835,-150.24,0.00011006,2]
[356582195,1742727031845,-169.24,0.00011008,2]
[356582196,1742727031855,-150.24,0.00011046,2]
[356582197,1742727031864,-150.24,0.00011085,2]
[356582198,1742727031873,-150.24,0.00011125,2]
[356582199,1742727031882,-150.24,0.00011165,2]
[356582200,1742727031891,-150.24,0.00011204,2]
[356582201,1742727031900,-150.24,0.00011244,2]
[356582202,1742727031910,-150.24,0.00011283,2]
[356582203,1742727031919,-150.24,0.00011323,2]
[356582204,1742727031930,-169.24,0.00011462,2]
[356582205,1742727031940,-2751.0,0.00011507,2]
[356582206,1742727031953,-1568.71,0.00011597,2]
[356582207,1742727031963,-551.5281,0.0001162,2]
[356582209,1742727031973,-150.0,0.00011629,2]
[356582211,1742727031982,-3151.7982,0.0001163,2]
[356582212,1742727031995,-265.4199,0.0001163,2]
[356582213,1742727032005,-5996.93916601,0.0001163,2]
[356582214,1742727032018,-13059.09973399,0.0001163,2]
[356582216,1742727032027,-1192.9979915,0.0001164,2]
[356582218,1742727032037,-2671.45033621,0.0001164,2]
[356582221,1742727032057,-3291.42852059,0.0001164,2]
[356582223,1742727032067,-150.0,0.00011686,2]
[356582225,1742727032077,-150.0,0.00011686,2]
[356582227,1742727032087,-434.66918734,0.00011724,2]
[356582229,1742727032096,-112787.65757234,0.0001173,2]
[356582231,1742727032105,-150.0,0.00011764,2]
[356582234,1742727032114,-150.0,0.0001177,2]
[356582237,1742727032123,-150.0,0.00011793,2]
[356582240,1742727032133,-150.0,0.00011796,2]
[356582243,1742727032142,-372.2184,0.000118,2]
[356582246,1742727032152,-1000.0,0.000118,2]
[356582248,1742727032161,-1916.26,0.000118,2]
[356582250,1742727032170,-172.0,0.000118,2]
[356582252,1742727032179,-178.94819274,0.00011801,2]
[356582254,1742727032189,-150.0,0.00011811,2]
[356582255,1742727032198,-150.0,0.00011817,2]
[356582256,1742727032207,-150.0,0.00011823,2]
[356582257,1742727032217,-150.0,0.00011834,2]
[356582258,1742727032226,-297.08848883,0.00011844,2]
[356582259,1742727032236,-150.0,0.00011849,2]
[356582260,1742727032245,-150.0,0.00011855,2]
[356582261,1742727032254,-301.73755605,0.0001188,2]
[356582262,1742727032263,-231.199,0.0001188,2]
[356582263,1742727032277,-2636.906,0.0001188,2]
[356582264,1742727032288,-150.0,0.00011884,2]
[356582265,1742727032297,-150.0,0.00011895,2]
[356582266,1742727032307,-26612.0464,0.000119,2]
[356582267,1742727032317,-35759.4256,0.000119,2]
[356582268,1742727032327,-859.3293,0.000119,2]
[356582269,1742727032336,-41071.3767,0.000119,2]
[356582270,1742727032345,-1000.0,0.000119,2]
[356582271,1742727032355,-500.0,0.000119,2]
[356582272,1742727032365,-4480.7624,0.000119,2]
[356582273,1742727032375,-358.49240212,0.000119,2]
[356582274,1742727032384,-13458.28513365,0.000119,2]
[356582275,1742727032396,-652.73075561,0.000119,2]
[356582276,1742727032418,-2016.30819884,0.000119,2]
[356582285,1742727037486,-731.99342017,0.000118,2]
[356582286,1742727037538,-6200.0,0.000118,2]
[356582287,1742727037549,-260.58,0.000118,2]
[356582288,1742727037644,-303.08418001,0.000118,2]
[356582289,1742727037657,-365.46838936,0.000118,2]
[356582290,1742727037699,-363.90638154,0.000118,2]
[356582422,1742727039693,-1104.52238611,0.000118,2]
[356582423,1742727039746,-31411.50944281,0.000118,2]
[356582424,1742727039755,-67544.27528377,0.000119,2]
[356582425,1742727039765,-438.09570119,0.000119,2]
[356582426,1742727039775,-1000.0,0.00011901,2]
[356582427,1742727039784,-200.0,0.00011904,2]
[356582428,1742727039793,-150.0,0.00011916,2]
[356582429,1742727039802,-169.24,0.00011916,2]
[356582430,1742727039811,-150.0,0.00011926,2]
[356582431,1742727039820,-150.0,0.00011927,2]
[356582432,1742727039830,-150.0,0.00011937,2]
[356582433,1742727039839,-150.0,0.00011975,2]
[356582434,1742727039848,-150.0,0.00011975,2]
[356582435,1742727039857,-150.0,0.00011975,2]
[356582436,1742727039867,-150.0,0.00011987,2]
[356582437,1742727039877,-150.0,0.00011991,2]
[356582438,1742727039887,-150.0,0.00011995,2]
[356582439,1742727039896,-150.0,0.00011995,2]
[356582440,1742727039905,-900.1759704,0.00011997,2]
[356582441,1742727039915,-5775.6606572,0.00011997,2]
[356582442,1742727039924,-9771.79524388,0.00012,2]
[356582443,1742727039934,-2002.5711921,0.00012,2]
[356582444,1742727039943,-223353.02955726,0.00012,2]
[356582445,1742727039961,-1164.22835039,0.00012,2]
[356582453,1742727042073,-182.333,0.00011438,2]
[356582478,1742727043426,-132.597,0.00011438,2]
[356582479,1742727043436,-478.43924955,0.00012,2]
[356582480,1742727043447,-396095.7802429,0.00012,2]
[356582481,1742727043457,-59614.90733105,0.00012,2]
[356582483,1742727045551,-1041.98334023,0.00012,2]
[356582484,1742727045814,-1450.68068298,0.00012,2]
[356582555,1742727238287,11393.68,0.00031688,30]
[356582556,1742727367420,1692.64,9.05e-05,2]
[356582557,1742727368983,-150.0,0.00011086,2]
[356582558,1742727369005,-146.89615342,0.00011313,2]
[356582559,1742727371354,-150.0,0.00010947,2]
[356582560,1742727384984,-50.0,0.00010947,2]
[356582561,1742727385007,-476.65201662,0.00010967,2]
[356582562,1742727391150,-168.48,0.00010912,2]
[356582563,1742727397609,-44.705076,0.00010912,2]
[356582564,1742727397634,-243.284924,0.00010956,2]
[356582565,1742727398737,-44.705076,0.00010956,2]
[356582566,1742727398764,-138.844924,0.00010967,2]
[356582567,1742727401109,-150.0,0.00010868,2]
[356582568,1742727418152,-160.65,0.00010867,2]
[356582569,1742727442936,-182.8084621,0.0001061,2]
[356582570,1742727468365,-152.7422791,0.00010556,2]
[356582572,1742727516749,-157.9077209,0.00010556,2]
[356582573,1742727516774,-63.63562621,0.00010601,2]
[356582574,1742727584895,-183.26898878,0.00010601,2]
[356582575,1742727601930,-158.38440415,0.00010601,2]
[356582576,1742727659198,-167.73673983,0.0001056,2]
[356582578,1742727727288,-122.88326017,0.0001056,2]
[356582579,1742727727312,-27.11673983,0.00010581,2]
[356582580,1742727782001,-122.88326017,0.00010581,2]
[356582581,1742727782024,-133.95414449,0.00010601,2]
[356582582,1742727843482,-173.14,0.0001047,2]
[356582583,1742727843507,-121.119645,0.00010601,2]
[356582584,1742727864636,-152.91151117,0.00010469,2]
[356582585,1742727878882,-5.46848883,0.00010469,2]
[356582586,1742727878904,-216.07485828,0.00010601,2]
[356582589,1742727983344,-200.0,0.00010466,2]
[356582602,1742728074856,-800.0,0.00010466,2]
[356582603,1742728074879,-1038.66233309,0.00010601,2]
[356582604,1742728074901,-67.1915379,0.0001061,2]
[356582605,1742728074924,-263.0997251,0.00010767,2]
[356582606,1742728074946,-1850.0,0.00010868,2]
[356582607,1742728074968,-165.13,0.00010919,2]
[356582608,1742728074991,-7326.91640391,0.00010967,2]
[356582609,1742728075792,-150.0,0.00010967,2]
[356582610,1742728082068,-150.0,0.00010966,2]
[356582611,1742728094032,-151.6906,0.00010546,2]
[356582612,1742728118769,-244.78187335,0.00010546,2]
[356582613,1742728142726,-257.51355892,0.00010546,2]
[356582973,1742728203500,-293.28535622,0.00010546,2]
[356582980,1742728231798,-3925.09861151,0.00010546,2]
[356582981,1742728231808,-300.0,0.00010766,2]
[356582982,1742728231817,-6544.7911,0.00010767,2]
[356582983,1742728231827,-15807.58665547,0.00010967,2]
[356582984,1742728231837,-287.99,0.00010979,2]
[356582985,1742728231847,-287.99,0.00011002,2]
[356582986,1742728231856,-287.99,0.00011026,2]
[356582987,1742728231866,-287.99,0.00011049,2]
[356582988,1742728231875,-287.99,0.00011072,2]
[356582989,1742728231885,-287.99,0.00011095,2]
[356582990,1742728231895,-287.99,0.00011118,2]
[356582991,1742728231904,-287.99,0.00011141,2]
[356582992,1742728231913,-287.99,0.00011164,2]
[356582993,1742728231923,-287.99,0.00011187,2]
[356582994,1742728231932,-287.99,0.0001121,2]
[356582995,1742728231942,-287.99,0.00011233,2]
[356582996,1742728231951,-287.99,0.00011256,2]
[356582997,1742728231960,-287.99,0.00011279,2]
[356582998,1742728231970,-287.99,0.00011302,2]
[356582999,1742728231979,-1545.74384658,0.00011313,2]
[356583000,1742728231988,-287.99,0.00011325,2]
[356583001,1742728231998,-287.99,0.00011349,2]
[356583002,1742728232007,-287.99,0.00011372,2]
[356583003,1742728232016,-150.0,0.00011393,2]
[356583004,1742728232025,-1000.0,0.00011393,2]
[356583005,1742728232034,-287.99,0.00011395,2]
[356583006,1742728232043,-2751.0,0.00011507,2]
[356583007,1742728232052,-150.0,0.00011516,2]
[356583008,1742728232061,-434.66918734,0.00011592,2]
[356583009,1742728232070,-1235.0,0.000116,2]
[356583011,1742728232080,-150.0,0.00011616,2]
[356583013,1742728232089,-1067.4697056,0.0001164,2]
[356583015,1742728232099,-150.0,0.00011661,2]
[356583017,1742728232108,-1000.0,0.00011774,2]
[356583019,1742728232117,-1000.0,0.000118,2]
[356583021,1742728232126,-500.0,0.000118,2]
[356583023,1742728232135,-25815.2321,0.000118,2]
[356583025,1742728232144,-826.5019,0.000118,2]
[356583027,1742728232158,-1681.8849,0.000118,2]
[356583029,1742728232167,-6649.9749,0.000118,2]
[356583031,1742728232177,-234.4401,0.000118,2]
[356583034,1742728232186,-2500.0,0.000118,2]
[356583037,1742728232195,-5621.61136962,0.000118,2]
[356583040,1742728232204,-165.13,0.0001182,2]
[356583043,1742728232213,-420.0,0.00011834,2]
[356583046,1742728232222,-184.959,0.0001188,2]
[356583049,1742728232232,-2335.989,0.0001188,2]
[356583053,1742728232241,-290.62,0.0001188,2]
[356583055,1742728232250,-11529.277,0.000119,2]
[356583057,1742728232260,-8847.4047,0.000119,2]
[356583059,1742728232268,-390.4038,0.000119,2]
[356583061,1742728232278,-178.94819271,0.000119,2]
[356583063,1742728232287,-1007.0,0.000119,2]
[356583065,1742728232295,-438.09570119,0.000119,2]
[356583067,1742728232305,-200.0,0.00011904,2]
[356583069,1742728232314,-7667.3602574,0.00011998,2]
[356583071,1742728232323,-1119.6271537,0.00011998,2]
[356583073,1742728232333,-153692.09789051,0.00012,2]
[356583077,1742728232363,-170.89614521,0.00011999,2]
[356583079,1742728232372,-8832.3729934,0.00012,2]
[356583081,1742728232383,-899.55707564,0.00012,2]
[356583322,1742728237692,-800.6022792,0.0001164,2]
[356583323,1742728237703,-1516.7838016,0.00012,2]
[356583324,1742728237745,-303.9967086,0.00012,2]
[356583372,1742728239785,-293.77699433,0.00012,2]
[356583373,1742728239797,-2118.00914197,0.00012,2]
[356583374,1742728239890,-4487.86932066,0.00012,2]
[356583375,1742728239902,-727.36724171,0.00012,2]
[356583376,1742728239913,-532.94644131,0.00012,2]
[356583377,1742728239999,-344216.35304861,0.00012,2]
[356583378,1742728240471,-1230.9102667,0.00012,2]
[356583399,1742728243632,-0.01944747,0.00012,2]
[356583403,1742728245846,-1224.1743083,0.00012,2]
[356583405,1742728430673,-150.98995775,0.00010095,2]
[356583406,1742728607577,-292.5542481,0.00010095,2]
[356583407,1742728620482,-152.91151117,0.00010095,2]
[356583409,1742728660287,-202.43854032,0.00010095,2]
[356583411,1742728751437,-152.91151117,0.00010095,2]
[356583412,1742728813471,-152.91151117,0.00010095,2]
[356583413,1742728858131,-152.25687035,0.00010095,2]
[356583414,1742729036315,-287.96771623,0.00010095,2]
[356583419,1742729164489,-180.15813374,0.00010095,2]
[356583420,1742729164515,-19.84186626,0.00010619,2]
[356583424,1742729197702,-153.76,0.00010581,2]
[356583456,1742729276578,-434.57342221,0.0001,2]
[356583457,1742729281969,-239.94837779,0.0001,2]
[356583458,1742729290579,597.63899735,9e-05,2]
[356583461,1742729297174,150.0,0.00010602,7]
[356583472,1742729338221,-317.61339904,0.0001,2]
[356583473,1742729338880,-150.0,0.0001,2]
[356583597,1742729368159,-178.70313746,9.99e-05,2]
[356583605,1742729388556,-405.39114254,9.99e-05,2]
[356583606,1742729397132,-94.64744896,9.99e-05,2]
[356583607,1742729397155,-339.92597325,0.0001,2]
[356583608,1742729400872,-2350.27844663,0.0001,2]
[356583609,1742729400895,-12649.72155337,0.0001,2]
[356583610,1742729405160,-150.0,9.999e-05,2]
[356583611,1742729405186,-53.28825739,0.0001,2]
[356583632,1742729431950,-4243.25,0.0001,2]
[356583633,1742729432010,-866.44188913,0.0001,2]
[356583634,1742729432022,-821.26328869,0.0001,2]
[356583635,1742729432037,-549.8367396,0.0001,2]
[356583636,1742729432049,-253.37999998,0.0001,2]
[356583637,1742729432117,-5327.0056312,0.0001,2]
[356583638,1742729432129,-6437.0524636,0.0001,2]
[356583639,1742729432140,-4942.8568448,0.0001,2]
[356583640,1742729432180,-508.49611379,0.0001,2]
[356583641,1742729432191,-893.81180349,0.0001,2]
[356583642,1742729432202,-951.45819651,0.0001,2]
[356583643,1742729432236,-1222.65758095,0.0001,2]
[356583673,1742729432683,-300.0,0.0001,2]
[356583725,1742729437980,-56348.27629145,0.0001,2]
[356583726,1742729437990,-150.0,0.00010291,2]
[356583727,1742729437999,-221.54,0.00010545,2]
[356583728,1742729438009,-3052.5,0.00010577,2]
[356583729,1742729438018,-283.43,0.00010577,2]
[356583730,1742729438028,-42.80240676,0.00010581,2]
[356583731,1742729438037,-980.15813374,0.00010619,2]
[356583732,1742729438046,-833.67,0.00010653,2]
[356583733,1742729438056,-685.6,0.00010681,2]
[356583734,1742729438065,-1565.57,0.00010696,2]
[356583735,1742729438074,-250.0,0.00010715,2]
[356583736,1742729438083,-2000.0,0.00010725,2]
[356583737,1742729438092,-150.0,0.00010959,2]
[356583738,1742729438101,-153.76,0.00010965,2]
[356583739,1742729438111,-250.0,0.0001097,2]
[356583740,1742729438120,-255.0,0.00010999,2]
[356583741,1742729438129,-150.0,0.00011,2]
[356583742,1742729438139,-150.0,0.00011104,2]
[356583743,1742729438148,-283.43,0.00011164,2]
[356583744,1742729438157,-938.38,0.00011303,2]
[356583745,1742729438167,-938.38,0.00011327,2]
[356583746,1742729438176,-938.38,0.00011351,2]
[356583747,1742729438185,-938.38,0.00011374,2]
[356583748,1742729438195,-938.38,0.00011398,2]
[356583749,1742729438204,-938.38,0.00011422,2]
[356583751,1742729438214,-227.16,0.0001144,2]
[356583753,1742729438223,-938.38,0.00011446,2]
[356583755,1742729438233,-938.38,0.0001147,2]
[356583757,1742729438243,-938.38,0.00011493,2]
[356583759,1742729438253,-938.38,0.00011517,2]
[356583761,1742729438262,-938.38,0.00011541,2]
[356583763,1742729438271,-434.66918734,0.00011544,2]
[356583765,1742729438281,-938.38,0.00011565,2]
[356583767,1742729438298,-200.0,0.00011566,2]
[356583769,1742729438309,-938.38,0.00011589,2]
[356583771,1742729438320,-938.38,0.00011612,2]
[356583773,1742729438330,-938.38,0.00011636,2]
[356583774,1742729438339,-638.9518544,0.0001164,2]
[356583776,1742729438350,-499.0,0.00011644,2]
[356583778,1742729438359,-938.38,0.0001166,2]
[356583780,1742729438368,-318.0,0.00011671,2]
[356583782,1742729438378,-938.38,0.00011684,2]
[356583784,1742729438389,-1000.0,0.000117,2]
[356583786,1742729438399,-938.38,0.00011708,2]
[356583788,1742729438409,-938.38,0.00011731,2]
[356583790,1742729438418,-283.43,0.00011752,2]
[356583792,1742729438428,-938.38,0.00011755,2]
[356583794,1742729438437,-500.0,0.000118,2]
[356583796,1742729438446,-196.56240675,0.000118,2]
[356583798,1742729438456,-5059.45023264,0.000118,2]
[356583799,1742729438465,-1431.0,0.000118,2]
[356583800,1742729438475,-184.96,0.00011861,2]
[356583801,1742729438484,-2115.027,0.00011861,2]
[356583802,1742729438494,-31714.5936,0.000119,2]
[356583803,1742729438504,-1000.0,0.000119,2]
[356583804,1742729438513,-151.06,0.000119,2]
[356583805,1742729438522,-2500.0,0.000119,2]
[356583806,1742729438532,-95434.11215827,0.000119,2]
[356583807,1742729438541,-408.88932112,0.000119,2]
[356583808,1742729438550,-200.0,0.00011904,2]
[356583810,1742729438559,-2751.0,0.0001194,2]
[356583812,1742729438568,-247.91,0.0001194,2]
[356583814,1742729438577,-1000.0,0.00011947,2]
[356583816,1742729438587,-471.54,0.00011967,2]
[356583818,1742729438596,-500.29541762,0.00011973,2]
[356583820,1742729438606,-300089.05098248,0.00012,2]
[356583822,1742729438618,-673.0503113,0.00012,2]
[356583825,1742729438634,-1657.64395826,0.00012,2]
[356583898,1742729440434,-13996.71721417,0.00012,2]
[356583899,1742729440444,-150.0,0.00012,2]
[356583900,1742729440453,-1605.39750299,0.00012,2]
[356583901,1742729440463,-713.33020746,0.00012,2]
[356583902,1742729440472,-327750.90812399,0.00012,2]
[356583918,1742729443028,-250.0,0.00011,2]
[356583919,1742729443038,-3787.59999993,0.00012,2]
[356583920,1742729443050,-602.99221745,0.00012,2]
[356583921,1742729443083,-1697.6296616,0.00012,2]
[356583922,1742729443140,-8483.65299157,0.00012,2]
[356583923,1742729443254,-344.10978337,0.00012,2]
[356583931,1742729443883,-909.8950679,0.00012,2]
[356583937,1742729446083,-451136.20346635,0.00012,2]
[356583938,1742729446221,-8416.3,0.00012,2]
[356583939,1742729446252,-2140.75789857,0.00012,2]
[356583951,1742729855118,509480.53,0.00031683,30]
[356583952,1742729861701,9252.7,0.00025,60]
[356583954,1742730028992,-155.9888447,0.0001069,2]
[356583955,1742730037241,-150.0,0.0001069,2]
[356584003,1742730632095,-1379.3411553,0.0001069,2]
[356584004,1742730632107,-1000.0,0.0001137,2]
[356584005,1742730632119,-4262.98186239,0.00011397,2]
[356584006,1742730632148,-3498.75320503,0.00011397,2]
[356584007,1742730632162,-475.47500001,0.00011397,2]
[356584008,1742730632202,-13277.43366975,0.00011397,2]
[356584009,1742730632257,-592.36206145,0.00011397,2]
[356584010,1742730632314,-1792.99420137,0.00011397,2]
[356584011,1742730632325,-150.0,0.00011485,2]
[356584012,1742730632336,-11.90821152,0.00011513,2]
[356584013,1742730632371,-138.09178848,0.00011513,2]
[356584014,1742730632381,-4651.03647992,0.00011514,2]
[356584015,1742730632395,-763.43736592,0.00011514,2]
[356584016,1742730632408,-914.98114799,0.00011514,2]
[356584017,1742730632427,-1838.45085366,0.00011514,2]
[356584018,1742730632479,-3777.19374894,0.00011514,2]
[356584021,1742730632493,-639.900128,0.00011514,2]
[356584198,1742730638015,-417.59,0.00011411,2]
[356584202,1742730638070,-1129.47,0.00011411,2]
[356584203,1742730638080,-2630.5950156,0.00011514,2]
[356584206,1742730638123,-1594.82470699,0.00011514,2]
[356584213,1742730638282,-1973.77812,0.00011514,2]
[356584215,1742730638293,-2035.765428,0.00011514,2]
[356584216,1742730638304,-2172.528378,0.00011514,2]
[356584218,1742730638315,-2052.2052,0.00011514,2]
[356584219,1742730638327,-2063.57616,0.00011514,2]
[356584221,1742730638338,-334.47,0.00011514,2]
[356584291,1742730640268,-27000.0,0.00011514,2]
[356584292,1742730640323,-1882.6086331,0.00011514,2]
[356584293,1742730640432,-27334.64863388,0.00011514,2]
[356584294,1742730640442,-434.66918734,0.00011582,2]
[356584295,1742730640451,-479.2138908,0.0001164,2]
[356584296,1742730640460,-500.0,0.000118,2]
[356584297,1742730640470,-1000.0,0.000118,2]
[356584298,1742730640479,-5505.58136353,0.000118,2]
[356584299,1742730640489,-184.96,0.00011899,2]
[356584300,1742730640498,-1889.011,0.00011899,2]
[356584301,1742730640508,-2500.0,0.000119,2]
[356584302,1742730640517,-1000.0,0.000119,2]
[356584303,1742730640528,-423.80378596,0.000119,2]
[356584304,1742730640537,-200.0,0.00011904,2]
[356584305,1742730640546,-288767.74797293,0.00012,2]
[356584306,1742730640558,-2800.39276772,0.00012,2]
[356584307,1742730640573,-927.02464298,0.00012,2]
[356584327,1742730643209,-443.04746471,0.00012,2]
[356584336,1742730646192,-178.94819271,0.000119,2]
[356584337,1742730646202,-2252.774475,0.0001194,2]
[356584338,1742730646212,-285.26233229,0.00012,2]
[356584339,1742730646246,-625.15552,0.00012,2]
[356584340,1742730646352,-59245.12540783,0.00012,2]
[356584341,1742730646363,-14836.25,0.00012,2]
[356584342,1742730646375,-27657.16378,0.00012,2]
[356584361,1742731437550,-250.0,0.00011,2]
[356584362,1742731437573,-434.66918734,0.00011599,2]
[356584363,1742731437594,-359.4104181,0.0001164,2]
[356584364,1742731437615,-479.14329499,0.0001164,2]
[356584365,1742731437636,-1000.0,0.000118,2]
[356584366,1742731437657,-476.77709957,0.000119,2]
[356584389,1742731832260,-269.5578136,0.0001164,2]
[356584390,1742731832271,-1085.37020043,0.000119,2]
[356584391,1742731832280,-200.0,0.00011904,2]
[356584392,1742731832290,-531.02023597,0.00011956,2]
[356584393,1742731832317,-513.68550688,0.00011956,2]
[356584394,1742731832328,-605.69425715,0.00011956,2]
[356584395,1742731832338,-3941.0,0.0001199,2]
[356584396,1742731832347,-204.203,0.0001199,2]
[356584397,1742731832356,-1014.0,0.0001199,2]
[356584398,1742731832365,-300.0,0.00011998,2]
[356584399,1742731832374,-1294.22721785,0.00011999,2]
[356584400,1742731832576,-903.34878215,0.00011999,2]
[356584401,1742731832586,-168.394,0.00011999,2]
[356584402,1742731832596,-113.30416796,0.00011999,2]
[356584403,1742731832629,-36.69583204,0.00011999,2]
[356584404,1742731832639,-829.65316796,0.00012,2]
[356584416,1742731840537,-92.54781803,0.00012,2]
[356584417,1742731840696,-302.165,0.00012,2]
[356584433,1742731843702,-19889.13335344,0.00012,2]
[356584438,1742731846529,-39336.61500779,0.00012,2]
[356584449,1742732761531,360.33519082,0.00031675,90]
[356584453,1742732842773,249.91590195,0.000101,2]
[356584454,1742732858495,1606.82,9.513e-05,2]
[356584499,1742733000191,-182.333,0.00011078,2]
[356584506,1742733031399,-23717.667,0.00011078,2]
[356584507,1742733031409,-150.0,0.00011126,2]
[356584509,1742733031419,-1540.13961156,0.0001113,2]
[356584512,1742733031565,-64.73038844,0.0001113,2]
[356584513,1742733031575,-164.96768207,0.00011394,2]